bitfinex-derivatives/quotes_SOLF0:USTF0_20240927
["timestamp","ask_amount","ask_price","bid_price","bid_amount"]
[1727428287390,2.022,158.14,158.04,16.7]
[1727428287583,3.1618,158.1,158.04,16.7]
[1727428287784,4.1037,158.14,158.06,16.7]
[1727428287988,3.19108003,158.18,158.0,16.7]
[1727428287989,3.19108003,158.18,158.1,16.7]
[1727428288196,3.161,158.14,158.11,3.1614]
[1727428290392,3.161,158.14,158.1,3.1617]
[1727428290894,16.7,158.13,158.04,4.0388]
[1727428291395,3.19044055,158.14,158.05,16.7]
[1727428291596,16.7,158.15,158.05,16.7]
[1727428291790,3.1614,158.12,158.05,16.7]
[1727428292187,16.7,158.15,158.08,3.162]
[1727428292188,3.11990737,158.14,158.08,3.162]
[1727428292396,3.1616,158.11,158.08,3.162]
[1727428292592,3.11990737,158.14,158.05,16.7]
[1727428292799,16.7,158.13,158.04,4.0388]
[1727428292995,1.9884,158.12,158.04,4.0388]
[1727428293394,3.162,158.09,158.06,3.1624]
[1727428294195,3.1622,158.08,158.05,3.1627]
[1727428294399,3.1622,158.08,158.04,4.0388]
[1727428295101,3.162,158.09,158.06,3.1625]
[1727428297297,1.9884,158.12,158.04,4.0388]
[1727428297501,1.9884,158.12,158.05,16.7]
[1727428297898,3.1622,158.08,158.05,3.1626]
[1727428299802,3.1623,158.07,158.01,16.7]
[1727428300102,3.1623,158.07,158.04,3.1629]
[1727428301203,19.7960268,158.1,158.03,3.1631]
[1727428301599,16.7,158.09,158.03,3.1631]
[1727428301803,16.7,158.09,158.02,3.1632]
[1727428302306,3.1629,158.05,158.02,3.1632]
[1727428302702,16.7,158.09,158.02,3.1632]
[1727428303803,3.1628,158.05,158.02,3.1632]
[1727428304199,3.1628,158.05,158.03,3.1631]
[1727428305104,3.1628,158.05,158.02,3.1633]
[1727428305407,16.7,158.09,158.01,16.7]
[1727428305806,3.1626,158.06,158.03,3.163]
[1727428307507,3.1626,158.06,158.04,3.1629]
[1727428310212,3.1626,158.06,158.03,3.163]
[1727428311319,3.1626,158.06,158.04,3.1629]
[1727428311507,3.1624,158.07,158.01,16.7]
[1727428311909,3.1624,158.07,158.04,3.1628]
[1727428313510,3.1626,158.06,158.04,3.1628]
[1727428313710,3.1626,158.06,158.03,3.163]
[1727428314910,3.1626,158.06,158.04,3.1628]
[1727428315609,3.1624,158.07,158.04,3.1628]
[1727428315802,19.7960268,158.1,158.04,3.1628]
[1727428317816,3.1624,158.07,158.04,3.1628]
[1727428319815,3.1622,158.08,158.06,3.1625]
[1727428320007,20.7809,158.12,158.03,16.7]
[1727428320211,1.9884,158.12,158.05,16.7]
[1727428320913,18.6884,158.12,158.03,16.7]
[1727428321215,18.6884,158.12,158.05,3.1626]
[1727428321216,3.1622,158.08,158.05,3.1626]
[1727428321517,3.1848927,158.1,158.01,18.7357]
[1727428321815,3.1624,158.07,158.04,3.1628]
[1727428322117,19.7985511,158.1,158.01,18.7357]
[1727428322303,3.1629,158.05,158.0,1.946]
[1727428322506,3.23870406,158.06,157.99,2.0901]
[1727428322708,16.7,158.07,157.99,2.0901]
[1727428323218,19.80930776,158.07,157.99,2.0901]
[1727428323417,3.163,158.04,158.01,3.1634]
[1727428323917,3.1631,158.04,158.01,3.1634]
[1727428324217,19.80930776,158.07,158.01,3.1634]
[1727428324512,3.1632,158.03,158.0,3.1636]
[1727428324712,19.80930776,158.07,158.0,3.1636]
[1727428324918,19.80930776,158.07,157.95,1.9581]
[1727428324919,16.7,158.05,157.96,16.7]
[1727428325817,3.1634,158.02,157.99,3.1638]
[1727428326117,16.7,158.05,157.96,16.7]
[1727428326321,3.1632,158.03,158.0,3.1636]
[1727428328722,3.1634,158.02,157.96,16.7]
[1727428329128,3.1634,158.02,157.99,3.1638]
[1727428330320,3.1635,158.01,157.99,3.1638]
[1727428331427,3.1635,158.01,157.98,3.1641]
[1727428333924,16.7,158.05,157.98,3.1641]
[1727428334529,3.1636,158.01,157.98,3.1641]
[1727428337230,16.7,158.05,157.96,16.7]
[1727428337432,5.19864545,158.06,157.98,16.7]
[1727428337730,3.163,158.04,158.01,3.1634]
[1727428340332,3.1628,158.05,157.95,7.28841646]
[1727428340627,2.0941,158.11,158.02,16.7]
[1727428340833,68.34,158.12,158.08,3.1619]
[1727428340834,3.1614,158.12,158.08,3.1619]
[1727428341128,2.0604,158.14,158.06,16.7]
[1727428341334,2.0604,158.14,158.08,16.7]
[1727428342040,3.1607,158.15,158.1,3.1616]
[1727428342339,3.1607,158.15,158.08,16.7]
[1727428342739,3.1607,158.15,158.1,3.1617]
[1727428343534,3.1609,158.14,158.1,3.1617]
[1727428343835,3.1609,158.14,158.09,3.1618]
[1727428344039,18.7971,158.17,158.08,16.7]
[1727428344937,3.1609,158.15,158.1,3.1616]
[1727428345134,18.7971,158.17,158.03,3.10974898]
[1727428345334,3.1612,158.13,158.09,3.1619]
[1727428345538,16.7,158.15,158.09,3.1619]
[1727428346040,3.161,158.14,158.09,3.1619]
[1727428346338,16.7,158.15,158.09,3.1619]
[1727428347437,16.7,158.13,158.04,16.7]
[1727428347739,16.7,158.11,158.02,22.97415067]
[1727428347939,16.7,158.11,158.02,16.7]
[1727428348738,3.1622,158.08,158.04,3.1628]
[1727428349044,3.1622,158.08,158.02,16.7]
[1727428349441,3.1625,158.06,158.01,6.0522]
[1727428349642,3.1625,158.06,158.01,4.0093]
[1727428350544,3.1624,158.07,158.01,4.0093]
[1727428351038,3.1624,158.07,158.03,3.1629]
[1727428353240,3.1624,158.07,158.04,3.1629]
[1727428355948,3.1621,158.08,158.02,16.7]
[1727428356149,3.11291219,158.09,158.02,16.7]
[1727428356341,3.11291219,158.09,158.01,4.0093]
[1727428356342,16.7,158.15,158.06,16.7]
[1727428356544,18.7861,158.15,158.06,16.7]
[1727428356739,2.0861,158.15,158.08,16.7]
[1727428356952,3.12619402,158.18,158.03,3.2360542]
[1727428356953,16.7,158.21,158.14,3.1609]
[1727428357160,2.1047,158.22,158.14,16.7]
[1727428357446,3.1598,158.2,158.16,3.1604]
[1727428357846,2.1047,158.22,158.16,16.7]
[1727428358152,16.7,158.28,158.18,16.7]
[1727428358346,2.1047,158.29,158.2,16.7]
[1727428358548,3.1587,158.26,158.21,3.1595]
[1727428358852,5.29157182,158.29,158.22,16.7]
[1727428359049,16.7,158.3,158.22,16.7]
[1727428359353,3.1582,158.28,158.23,3.159]
[1727428359949,3.1577,158.3,158.25,3.1586]
[1727428360154,16.7,158.34,158.26,16.7]
[1727428360453,19.81445729,158.34,158.26,16.7]
[1727428360655,19.81445729,158.34,158.25,3.1587]
[1727428361755,3.1577,158.31,158.25,3.1587]
[1727428362550,16.7,158.31,158.21,16.7]
[1727428362851,3.11445729,158.34,158.23,16.7]
[1727428362852,19.81445729,158.34,158.23,16.7]
[1727428363155,3.1578,158.3,158.25,3.1586]
[1727428364051,16.7,158.32,158.23,16.7]
[1727428364257,16.7,158.32,158.21,16.7]
[1727428364456,16.7,158.34,158.24,16.7]
[1727428364648,3.1575,158.31,158.26,3.1585]
[1727428364848,16.7,158.34,158.26,3.1585]
[1727428365352,3.1579,158.3,158.26,3.1585]
[1727428366052,5.18827505,158.35,158.22,16.7]
[1727428366053,16.7,158.32,158.22,16.7]
[1727428366556,3.1579,158.29,158.22,16.7]
[1727428366952,16.7,158.32,158.22,16.7]
[1727428367153,3.1579,158.29,158.24,3.1588]
[1727428367353,16.7,158.32,158.24,3.1588]
[1727428367555,16.7,158.32,158.22,16.7]
[1727428367752,16.7,158.3,158.19,16.7]
[1727428368451,3.1587,158.26,158.19,16.7]
[1727428368856,3.1587,158.26,158.22,3.1593]
[1727428369049,3.1587,158.26,158.19,16.7]
[1727428369447,3.1587,158.26,158.22,3.1591]
[1727428369749,3.1583,158.27,158.23,16.7]
[1727428369950,16.7,158.34,158.23,16.7]
[1727428370344,5.18827505,158.35,158.25,16.7]
[1727428370550,2.1047,158.35,158.27,16.7]
[1727428371551,2.1047,158.35,158.29,16.7]
[1727428371949,3.1571,158.34,158.3,3.1577]
[1727428372456,1.9143,158.38,158.28,26.69]
[1727428372761,2.0796,158.41,158.31,26.69]
[1727428373056,3.1563,158.38,158.34,3.1568]
[1727428374151,3.156,158.39,158.35,3.1567]
[1727428374556,2.0796,158.41,158.33,26.69]
[1727428374858,2.0796,158.41,158.33,28.7461]
[1727428375061,3.1559,158.4,158.36,3.1564]
[1727428375758,2.0796,158.41,158.33,28.7461]
[1727428376456,3.1561,158.39,158.33,28.7461]
[1727428376859,3.1561,158.39,158.35,3.1566]
[1727428378551,3.1561,158.39,158.36,3.1565]
[1727428381563,3.1561,158.39,158.35,3.1566]
[1727428381762,2.0796,158.41,158.33,2.0561]
[1727428381956,2.0796,158.41,158.35,3.1567]
[1727428382156,2.0796,158.41,158.33,2.0561]
[1727428382359,3.1563,158.38,158.33,2.0561]
[1727428382858,2.0796,158.41,158.33,2.0561]
[1727428383063,2.0796,158.41,158.32,1.9567]
[1727428383459,2.0796,158.41,158.32,5.1138]
[1727428383659,2.0796,158.41,158.32,3.1571]
[1727428384261,3.1566,158.36,158.33,3.1571]
[1727428385565,3.1567,158.35,158.32,3.1572]
[1727428386158,2.0796,158.41,158.3,3.1576]
[1727428386159,3.1571,158.33,158.3,3.1576]
[1727428387062,3.157,158.34,158.31,3.1575]
[1727428389665,3.1571,158.33,158.31,3.1575]
[1727428389870,3.1571,158.33,158.3,3.1577]
[1727428390074,3.22697466,158.37,158.28,28.6602]
[1727428390270,28.7696,158.41,158.28,28.6602]
[1727428390461,3.157,158.34,158.31,3.1575]
[1727428393668,2.0796,158.41,158.3,26.69]
[1727428393870,2.0796,158.41,158.33,26.69]
[1727428394067,3.1562,158.38,158.35,3.1566]
[1727428394262,3.1562,158.38,158.35,19.8266]
[1727428395760,3.156,158.39,158.36,3.1565]
[1727428395966,2.0796,158.41,158.35,16.67]
[1727428396166,3.23019405,158.45,158.37,16.67]
[1727428396467,1.9384,158.45,158.37,16.67]
[1727428396668,5.16631502,158.45,158.37,16.67]
[1727428396873,5.16631502,158.45,158.32,19.87644191]
[1727428396874,5.16631502,158.45,158.39,16.67]
[1727428397071,1.9384,158.45,158.39,16.67]
[1727428397264,3.1551,158.44,158.41,16.67]
[1727428399477,3.1552,158.43,158.41,16.67]
[1727428401075,3.1554,158.42,158.39,16.67]
[1727428401374,16.67,158.48,158.39,16.67]
[1727428401572,1.9443,158.47,158.39,16.67]
[1727428402377,3.1553,158.43,158.39,19.8257]
[1727428402773,1.9443,158.47,158.39,16.67]
[1727428402975,3.1552,158.43,158.4,3.1556]
[1727428403671,3.1552,158.43,158.39,19.8258]
[1727428403871,1.9443,158.47,158.39,19.8258]
[1727428403872,3.1553,158.42,158.39,19.8258]
[1727428405574,1.9443,158.47,158.39,16.67]
[1727428406480,1.9443,158.47,158.39,19.8259]
[1727428407278,1.9443,158.47,158.4,3.1557]
[1727428407669,1.9443,158.47,158.39,16.67]
[1727428407877,18.6143,158.47,158.36,16.67]
[1727428408580,3.1555,158.42,158.38,3.156]
[1727428408981,18.6143,158.47,158.38,3.156]
[1727428409676,18.6143,158.47,158.38,16.67]
[1727428410177,3.1552,158.43,158.4,3.1557]
[1727428410384,3.18597161,158.48,158.4,16.67]
[1727428410783,3.155,158.44,158.41,3.1555]
[1727428411379,3.1552,158.43,158.4,19.8256]
[1727428412384,3.155,158.44,158.4,16.67]
[1727428412687,1.9384,158.49,158.42,16.67]
[1727428412884,5.04103697,158.49,158.42,16.67]
[1727428413385,3.1546,158.46,158.43,3.1551]
[1727428413582,3.1546,158.46,158.42,16.67]
[1727428413583,5.04103697,158.49,158.42,16.67]
[1727428413783,3.1548,158.45,158.42,3.1553]
[1727428414485,3.1545,158.46,158.43,3.155]
[1727428414681,5.04103697,158.49,158.41,16.67]
[1727428414882,5.04103697,158.49,158.42,16.67]
[1727428415083,3.1545,158.46,158.43,3.1551]
[1727428415284,1.9384,158.49,158.42,16.67]
[1727428415687,2.0035,158.53,158.44,16.67]
[1727428415987,7.2023337,158.53,158.44,16.67]
[1727428416188,3.1541,158.49,158.45,3.1547]
[1727428417385,3.1542,158.48,158.44,19.8249]
[1727428417891,3.1543,158.47,158.44,16.67]
[1727428419088,3.1543,158.47,158.44,19.8249]
[1727428422590,3.23059901,158.51,158.45,3.1547]
[1727428422786,2.0481,158.53,158.49,16.67]
[1727428423192,3.1535,158.52,158.49,16.67]
[1727428423809,3.1535,158.51,158.49,16.67]
[1727428425099,3.1534,158.52,158.49,16.67]
[1727428425296,3.1534,158.52,158.49,19.8239]
[1727428426393,2.0683,158.58,158.49,16.67]
[1727428426991,3.1537,158.51,158.49,16.67]
[1727428429199,16.67,158.57,158.47,16.67]
[1727428430201,16.67,158.55,158.45,16.67]
[1727428430707,3.1538,158.5,158.47,16.67]
[1727428431405,16.67,158.57,158.48,16.67]
[1727428432005,3.1535,158.52,158.48,16.67]
[1727428432599,3.1532,158.53,158.49,3.1538]
[1727428432804,2.0683,158.58,158.49,3.1538]
[1727428433401,2.0683,158.58,158.51,16.67]
[1727428434310,2.0683,158.58,158.48,1.9487]
[1727428434496,16.67,158.57,158.48,1.9487]
[1727428434998,16.67,158.57,158.48,5.1028]
[1727428435206,16.67,158.57,158.48,1.9487]
[1727428435411,3.1538,158.5,158.48,1.9487]
[1727428436504,3.1538,158.5,158.47,19.8243]
[1727428436802,19.87888242,158.53,158.46,75.17057863]
[1727428436999,16.67,158.53,158.46,75.17057863]
[1727428437204,19.82588475,158.53,158.43,16.67]
[1727428437400,16.67,158.53,158.43,16.67]
[1727428437802,3.1545,158.47,158.43,19.8251]
[1727428439508,19.80372504,158.53,158.44,3.1548]
[1727428440202,3.1543,158.48,158.44,3.1548]
[1727428440402,19.80372504,158.53,158.44,3.1548]
[1727428440804,3.1543,158.48,158.44,3.1548]
[1727428441710,16.67,158.51,158.41,16.67]
[1727428441911,2.0115,158.5,158.41,16.67]
[1727428442111,3.1854826,158.49,158.41,16.67]
[1727428442314,3.1854826,158.49,158.41,19.8254]
[1727428442812,3.1549,158.45,158.41,19.8254]
[1727428443111,3.1854826,158.49,158.41,19.8254]
[1727428443504,3.1549,158.45,158.41,19.8254]
[1727428443806,3.1854826,158.49,158.41,16.67]
[1727428444011,3.155,158.44,158.41,16.67]
[1727428445101,3.1552,158.43,158.37,2.0669]
[1727428445302,16.67,158.49,158.39,16.67]
[1727428445512,19.86136456,158.49,158.39,16.67]
[1727428446111,3.1553,158.43,158.39,19.8258]
[1727428446308,19.86136456,158.49,158.39,19.8258]
[1727428446709,3.1553,158.43,158.39,19.8258]
[1727428447308,3.1553,158.43,158.4,3.1557]
[1727428449014,19.86136456,158.49,158.41,16.67]
[1727428449015,3.155,158.44,158.41,16.67]
[1727428449311,3.155,158.44,158.41,19.8255]
[1727428451409,16.67,158.48,158.39,19.8258]
[1727428451710,16.67,158.46,158.37,18.7369]
[1727428452013,16.67,158.48,158.39,16.67]
[1727428452512,3.1551,158.44,158.4,3.1556]
[1727428452710,3.17882861,158.47,158.4,3.1556]
[1727428453512,3.1552,158.43,158.4,3.1556]
[1727428453817,3.17882861,158.47,158.39,19.8259]
[1727428454011,16.67,158.48,158.39,19.8259]
[1727428454212,3.1553,158.43,158.39,19.8259]
[1727428454519,3.2021637,158.46,158.39,16.67]
[1727428454713,16.67,158.48,158.39,16.67]
[1727428454714,3.1555,158.42,158.39,16.67]
[1727428455312,18.6815,158.5,158.41,16.67]
[1727428455514,21.81262379,158.5,158.41,16.67]
[1727428456213,3.155,158.44,158.41,19.8254]
[1727428456414,3.155,158.44,158.43,10.66]
[1727428457408,10.66,158.48,158.43,10.66]
[1727428457612,10.66,158.49,158.45,10.66]
[1727428457818,5.14262379,158.5,158.47,10.66]
[1727428458412,5.14262379,158.5,158.45,16.65]
[1727428459014,3.1542,158.48,158.45,19.8047]
[1727428459316,5.14262379,158.5,158.45,16.65]
[1727428459618,3.1545,158.46,158.45,16.65]
[1727428460008,3.1548,158.45,158.43,16.65]
[1727428460819,5.14262379,158.5,158.43,16.65]
[1727428461617,3.1548,158.45,158.43,16.65]
[1727428466231,3.13112379,158.5,158.43,16.65]
[1727428466416,16.65,158.52,158.43,16.65]
[1727428466822,1.9834,158.53,158.45,16.65]
[1727428467430,5.21263677,158.53,158.45,16.65]
[1727428467619,3.1543,158.48,158.45,19.8047]
[1727428468026,3.1543,158.48,158.45,16.65]
[1727428469124,3.1541,158.49,158.45,16.65]
[1727428469431,3.1541,158.49,158.4,19.80475476]
[1727428469432,5.21263677,158.53,158.47,16.65]
[1727428469633,3.1537,158.51,158.47,16.65]
[1727428469822,5.21263677,158.53,158.47,19.8042]
[1727428470436,3.1537,158.51,158.48,3.1541]
[1727428470931,4.2218,158.57,158.49,16.65]
[1727428472228,3.1537,158.51,158.49,16.65]
[1727428472431,3.1537,158.51,158.47,19.8043]
[1727428474626,3.1541,158.48,158.47,16.65]
[1727428474830,18.7599,158.57,158.47,16.65]
[1727428475329,3.1535,158.52,158.48,3.1541]
[1727428476234,3.1532,158.53,158.49,16.65]
[1727428476821,3.1532,158.53,158.5,3.1536]
[1727428477025,3.153,158.54,158.49,16.65]
[1727428477632,3.153,158.54,158.51,3.1534]
[1727428478536,3.153,158.54,158.51,19.8034]
[1727428479636,2.1099,158.57,158.52,3.1533]
[1727428480327,12.7699,158.57,158.52,10.66]
[1727428480725,2.1099,158.57,158.54,13.8129]
[1727428480924,2.1099,158.57,158.54,10.66]
[1727428481326,3.1527,158.55,158.54,10.66]
[1727428481732,2.1099,158.57,158.49,2.0924]
[1727428481932,2.1099,158.57,158.52,10.66]
[1727428482128,3.1531,158.54,158.52,10.66]
[1727428483133,3.09686584,158.61,158.53,10.66]
[1727428483335,10.66,158.62,158.57,10.66]
[1727428484929,3.1521,158.58,158.57,10.66]
[1727428485438,2.0297,158.63,158.57,10.66]
[1727428485632,2.0297,158.63,158.6,10.66]
[1727428485834,2.0297,158.63,158.59,10.66]
[1727428486232,12.6897,158.63,158.49,7.31930976]
[1727428486435,12.6897,158.63,158.58,10.66]
[1727428486833,3.152,158.59,158.58,10.66]
[1727428487230,3.11751344,158.65,158.49,7.31930976]
[1727428487437,10.66,158.65,158.59,10.66]
[1727428487635,13.8001844,158.65,158.59,10.66]
[1727428488334,3.1519,158.6,158.59,10.66]
[1727428488841,10.66,158.63,158.58,10.66]
[1727428489340,3.1519,158.6,158.58,10.66]
[1727428490341,3.1519,158.59,158.58,10.66]
[1727428495340,3.1519,158.6,158.58,10.66]
[1727428497447,3.1519,158.6,158.59,10.66]
[1727428498141,10.66,158.63,158.49,7.31930976]
[1727428498346,10.66,158.63,158.58,10.66]
[1727428498941,3.1521,158.59,158.58,10.66]
[1727428499348,3.1519,158.6,158.58,10.66]
[1727428499539,3.1519,158.6,158.59,10.66]
[1727428500247,13.8001844,158.65,158.59,10.66]
[1727428500551,1.9339,158.66,158.62,10.66]
[1727428500942,3.1512,158.63,158.62,10.66]
[1727428502148,13.8881726,158.69,158.62,10.66]
[1727428502347,13.8881726,158.69,158.54,6.3056]
[1727428502348,10.66,158.69,158.64,10.66]
[1727428502543,3.1506,158.66,158.64,10.66]
[1727428502848,3.10596966,158.68,158.64,10.66]
[1727428503252,10.66,158.68,158.63,10.66]
[1727428503444,10.66,158.66,158.55,5.8115]
[1727428503655,10.66,158.65,158.6,10.66]
[1727428503949,3.1513,158.63,158.6,10.66]
[1727428504248,10.66,158.65,158.6,10.66]
[1727428504444,5.30473465,158.71,158.61,10.66]
[1727428504644,10.66,158.67,158.61,10.66]
[1727428505249,3.1512,158.63,158.61,10.66]
[1727428505555,10.66,158.65,158.61,10.66]
[1727428506547,10.66,158.65,158.55,5.8115]
[1727428506548,10.66,158.65,158.6,10.66]
[1727428506745,3.1513,158.62,158.6,10.66]
[1727428507248,10.66,158.65,158.61,10.66]
[1727428507448,3.1513,158.63,158.61,10.66]
[1727428508654,3.1513,158.62,158.61,10.66]
[1727428508847,10.66,158.63,158.55,5.8115]
[1727428509151,10.66,158.63,158.58,10.66]
[1727428509359,3.1516,158.61,158.58,10.66]
[1727428513546,13.78705551,158.63,158.58,10.66]
[1727428514144,3.1518,158.6,158.58,10.66]
[1727428519354,3.1516,158.61,158.58,10.66]
[1727428519557,1.9721,158.65,158.6,10.66]
[1727428519763,1.9721,158.65,158.55,5.8115]
[1727428519764,10.66,158.64,158.55,5.8115]
[1727428520061,10.66,158.64,158.59,10.66]
[1727428520360,1.9721,158.65,158.59,10.66]
[1727428520361,10.66,158.63,158.59,10.66]
[1727428522053,10.66,158.63,158.55,3.891]
[1727428522361,1.9721,158.65,158.57,10.66]
[1727428522362,3.1521,158.59,158.57,10.66]
[1727428523263,3.1521,158.59,158.56,10.66]
[1727428524657,3.1522,158.58,158.55,7.0436]
[1727428524854,3.1522,158.58,158.56,10.66]
[1727428525460,10.66,158.58,158.55,1.9908]
[1727428525763,10.66,158.57,158.51,77.23730251]
[1727428525963,3.1531,158.54,158.51,91.05080251]
[1727428526555,3.1532,158.53,158.51,87.89730251]
[1727428526753,10.66,158.57,158.51,87.89730251]
[1727428526969,3.153,158.54,158.52,10.66]
[1727428527961,10.66,158.54,158.51,75.14820251]
[1727428528163,10.66,158.52,158.46,4.0824]
[1727428528360,3.1541,158.48,158.47,10.66]
[1727428528874,10.66,158.51,158.47,10.66]
[1727428529063,3.1541,158.48,158.47,10.66]
[1727428529458,10.66,158.52,158.47,10.66]
[1727428529972,5.00566753,158.57,158.46,14.7424]
[1727428530164,10.66,158.51,158.46,14.7424]
[1727428530364,10.66,158.48,158.42,1.8081]
[1727428530570,10.66,158.48,158.43,13.815]
[1727428530765,3.1545,158.47,158.43,13.815]
[1727428531570,5.00566753,158.57,158.46,10.66]
[1727428531764,10.66,158.5,158.46,10.66]
[1727428531965,10.66,158.5,158.42,1.8081]
[1727428531966,5.00566753,158.57,158.48,10.66]
[1727428532168,5.00566753,158.57,158.52,10.66]
[1727428532372,1.8322,158.57,158.54,10.66]
[1727428532567,13.77542344,158.58,158.54,10.66]
[1727428532763,3.1527,158.55,158.54,10.66]
[1727428532967,3.1527,158.55,158.53,10.66]
[1727428533675,3.1529,158.54,158.51,10.66]
[1727428533969,3.1529,158.54,158.42,1.8081]
[1727428533970,10.66,158.55,158.42,1.8081]
[1727428534168,3.1535,158.52,158.49,10.66]
[1727428534580,3.1538,158.5,158.48,10.66]
[1727428534772,3.1538,158.5,158.42,1.8081]
[1727428534773,10.66,158.52,158.42,1.8081]
[1727428535070,10.66,158.52,158.47,10.66]
[1727428535270,3.1538,158.5,158.47,10.66]
[1727428535471,1.8695,158.57,158.48,10.66]
[1727428535778,10.66,158.53,158.48,10.66]
[1727428536380,16.67,158.55,158.46,16.67]
[1727428536886,3.1537,158.51,158.47,3.1542]
[1727428539873,16.67,158.55,158.46,19.8245]
[1727428540077,16.67,158.53,158.44,16.67]
[1727428540382,3.154,158.49,158.45,3.1547]
[1727428540584,1.8695,158.57,158.44,16.67]
[1727428540784,16.67,158.55,158.46,16.67]
[1727428541284,3.1537,158.51,158.47,3.1542]
[1727428542580,18.5395,158.57,158.48,16.67]
[1727428543085,18.5395,158.57,158.5,3.1536]
[1727428544276,3.1531,158.54,158.5,3.1536]
[1727428545683,3.1532,158.53,158.49,3.1539]
[1727428545892,18.5395,158.57,158.49,3.1539]
[1727428546389,3.1533,158.53,158.49,3.1539]
[1727428546983,18.5395,158.57,158.48,16.67]
[1727428547788,3.1535,158.52,158.48,19.8241]
[1727428548178,16.67,158.55,158.46,16.67]
[1727428548484,16.67,158.55,158.3,63.72773147]
[1727428548485,16.67,158.51,158.33,6.314]
[1727428548685,1.9251,158.5,158.39,16.67]
[1727428549285,3.1544,158.47,158.43,3.1551]
[1727428553089,1.9251,158.5,158.41,18.6611]
[1727428553090,3.1542,158.48,158.41,18.6611]
[1727428553977,3.8899,158.54,158.43,16.67]
[1727428553978,3.154,158.49,158.43,16.67]
[1727428554185,3.154,158.49,158.44,1.8512]
[1727428555281,3.154,158.49,158.46,3.1544]
[1727428560399,3.154,158.49,158.46,13.8144]
[1727428562592,3.154,158.49,158.46,10.66]
[1727428562991,10.66,158.47,158.42,3.1552]
[1727428563191,10.66,158.46,158.42,3.1552]
[1727428564598,10.66,158.47,158.43,3.1551]
[1727428564799,1.4899,158.49,158.44,10.66]
[1727428565097,1.4899,158.49,158.41,1.9911]
[1727428565098,3.8899,158.54,158.47,10.66]
[1727428565298,10.66,158.52,158.47,10.66]
[1727428565494,1.8998,158.54,158.48,10.66]
[1727428565696,1.569,158.55,158.51,10.66]
[1727428566093,3.1526,158.56,158.52,10.66]
[1727428566298,3.1526,158.56,158.52,3.1532]
[1727428566892,1.5882,158.59,158.54,3.1528]
[1727428566893,3.152,158.59,158.54,3.1528]
[1727428567096,3.21289928,158.62,158.53,16.66]
[1727428567297,16.66,158.62,158.53,16.66]
[1727428567604,16.66,158.62,158.53,19.813]
[1727428567605,19.82999753,158.62,158.53,19.813]
[1727428568005,19.82999753,158.62,158.53,16.66]
[1727428568197,3.1521,158.59,158.54,3.1528]
[1727428569098,3.1518,158.6,158.53,16.66]
[1727428569299,18.229,158.64,158.53,16.66]
[1727428569896,18.229,158.64,158.55,16.66]
[1727428570793,3.1514,158.62,158.55,16.66]